[Event "Titled Tuesday Blitz April 4 Late 2023"]
[White "Tarnowska, Aleksandra"]
[Black "Vaglio Munoz, Jaime"]
[WhiteFideId "1180967"]
[BlackFideId "6500145"]
[WhiteElo "1776"]
[BlackElo "2199"]
[Result "0-1"]
[Round "09"]
[TimeControl "180+2"]
[Date "2023.04.04"]
[WhiteClock "0:00:03"]
[BlackClock "0:01:14"]

1. e4 {[%clk 0:03:00]}  c5 {[%clk 0:02:58]} 2. Nf3 {[%clk 0:03:01]}  Qa5 {[%clk 0:02:58]} 3. Nc3 {[%clk 0:02:54]}  a6 {[%clk 0:02:58]} 4. d4 {[%clk 0:02:49]}  b5 {[%clk 0:02:57]} 5. dxc5 {[%clk 0:02:38]}  e6 {[%clk 0:02:56]} 6. Bd2 {[%clk 0:02:12]}  b4 {[%clk 0:02:55]} 7. Ne2 {[%clk 0:02:08]}  Bxc5 {[%clk 0:02:55]} 8. Ned4 {[%clk 0:02:00]}  Qb6 {[%clk 0:02:54]} 9. Be3 {[%clk 0:01:59]}  Bb7 {[%clk 0:02:54]} 10. Bd3 {[%clk 0:01:15]}  Nf6 {[%clk 0:02:52]} 11. O-O {[%clk 0:00:46]}  Nxe4 {[%clk 0:02:51]} 12. c3 {[%clk 0:00:42]}  Nf6 {[%clk 0:02:41]} 13. cxb4 {[%clk 0:00:38]}  Qxb4 {[%clk 0:02:39]} 14. Rc1 {[%clk 0:00:25]}  Qb6 {[%clk 0:02:14]} 15. Rxc5 {[%clk 0:00:24]}  Qxc5 {[%clk 0:02:14]} 16. Nxe6 {[%clk 0:00:24]}  Qd5 {[%clk 0:02:08]} 17. Nc7+ {[%clk 0:00:24]}  Kd8 {[%clk 0:02:07]} 18. Nxd5 {[%clk 0:00:24]}  Nxd5 {[%clk 0:02:06]} 19. Ne5 {[%clk 0:00:18]}  Rf8 {[%clk 0:02:03]} 20. Bc4 {[%clk 0:00:16]}  Ne7 {[%clk 0:01:54]} 21. Nxf7+ {[%clk 0:00:15]}  Rxf7 {[%clk 0:01:43]} 22. Bxf7 {[%clk 0:00:15]}  Nbc6 {[%clk 0:01:44]} 23. Be6 {[%clk 0:00:12]}  Bc8 {[%clk 0:01:40]} 24. Bb6+ {[%clk 0:00:11]}  Ke8 {[%clk 0:01:39]} 25. Bd5 {[%clk 0:00:09]}  Rb8 {[%clk 0:01:39]} 26. Bxc6 {[%clk 0:00:07]}  Rxb6 {[%clk 0:01:39]} 27. Be4 {[%clk 0:00:03]}  g6 {[%clk 0:01:37]} 28. Re1 {[%clk 0:00:03]}  Kd8 {[%clk 0:01:36]} 29. Bd5 {[%clk 0:00:03]}  Nf5 {[%clk 0:01:35]} 30. Qd3 {[%clk 0:00:03]}  Rd6 {[%clk 0:01:33]} 31. b3 {[%clk 0:00:02]}  Bb7 {[%clk 0:01:33]} 32. Re5 {[%clk 0:00:03]}  Ne7 {[%clk 0:01:32]} 33. Qe3 {[%clk 0:00:03]}  Nxd5 {[%clk 0:01:31]} 34. Re8+ {[%clk 0:00:03]}  Kc7 {[%clk 0:01:32]} 35. Qc1+ {[%clk 0:00:04]}  Rc6 {[%clk 0:01:32]} 36. Qd1 {[%clk 0:00:04]}  Nf6 {[%clk 0:01:31]} 37. Re1 {[%clk 0:00:03]}  Rd6 {[%clk 0:01:30]} 38. Qc1+ {[%clk 0:00:03]}  Bc6 {[%clk 0:01:31]} 39. Qf4 {[%clk 0:00:04]}  Nd5 {[%clk 0:01:31]} 40. Qg3 {[%clk 0:00:04]}  g5 {[%clk 0:01:29]} 41. h3 {[%clk 0:00:04]}  Nf4 {[%clk 0:01:29]} 42. Qe3 {[%clk 0:00:04]}  Re6 {[%clk 0:01:28]} 43. Qd2 {[%clk 0:00:03]}  Rd6 {[%clk 0:01:27]} 44. Qc3 {[%clk 0:00:03]}  Nd3 {[%clk 0:01:25]} 45. Rd1 {[%clk 0:00:02]}  Nf4 {[%clk 0:01:25]} 46. Qe5 {[%clk 0:00:02]}  Nd5 {[%clk 0:01:22]} 47. Qxd6+ {[%clk 0:00:03]}  Kxd6 {[%clk 0:01:22]} 48. g3 {[%clk 0:00:03]}  Ke5 {[%clk 0:01:21]} 49. f4+ {[%clk 0:00:03]}  gxf4 {[%clk 0:01:21]} 50. gxf4+ {[%clk 0:00:04]}  Nxf4 {[%clk 0:01:21]} 51. Re1+ {[%clk 0:00:04]}  Kf5 {[%clk 0:01:21]} 52. Re8 {[%clk 0:00:04]}  Nxh3+ {[%clk 0:01:19]} 53. Kf1 {[%clk 0:00:03]}  Ng5 {[%clk 0:01:19]} 54. Rf8+ {[%clk 0:00:03]}  Kg6 {[%clk 0:01:19]} 55. Rg8+ {[%clk 0:00:03]}  Kh5 {[%clk 0:01:19]} 56. Rf8 {[%clk 0:00:03]}  Kg4 {[%clk 0:01:18]} 57. a4 {[%clk 0:00:03]}  h5 {[%clk 0:01:18]} 58. Rg8 {[%clk 0:00:04]}  h4 {[%clk 0:01:18]} 59. Kg1 {[%clk 0:00:03]}  h3 {[%clk 0:01:18]} 60. Rg7 {[%clk 0:00:03]}  Kh4 {[%clk 0:01:18]} 61. Rg8 {[%clk 0:00:03]}  Nf3+ {[%clk 0:01:18]} 62. Kf2 {[%clk 0:00:03]}  h2 {[%clk 0:01:18]} 63. Rh8+ {[%clk 0:00:04]}  Kg4 {[%clk 0:01:18]} 64. Rg8+ {[%clk 0:00:04]}  Kf4 {[%clk 0:01:18]} 65. Rf8+ {[%clk 0:00:04]}  Ke5 {[%clk 0:01:18]} 66. Re8+ {[%clk 0:00:04]}  Kf6 {[%clk 0:01:18]} 67. Rf8+ {[%clk 0:00:04]}  Ke7 {[%clk 0:01:17]} 68. Rh8 {[%clk 0:00:04]}  Be4 {[%clk 0:01:14]} 69. b4 {[%clk 0:00:02]}  d5 {[%clk 0:01:14]} 70. b5 {[%clk 0:00:02]}  axb5 {[%clk 0:01:15]} 71. axb5 {[%clk 0:00:03]}  Kd6 {[%clk 0:01:15]} 72. Rc8 {[%clk 0:00:02]}  h1=Q {[%clk 0:01:14]} 73. b6 {[%clk 0:00:03]}  Qg1+ {[%clk 0:01:14]} 0-1


[Site "https://www.chess.com"]

[Event "Titled Tuesday Blitz April 4 Late 2023"]
[White "lluiss"]
[Black "Oliveira, Tiago Batista"]
[BlackFideId "2108291"]
[WhiteElo "2256"]
[BlackElo "1962"]
[Result "1-0"]
[Round "09"]
[TimeControl "180+2"]
[Date "2023.04.04"]
[WhiteClock "0:00:02"]
[BlackClock "0:00:02"]

1. c4 {[%clk 0:03:00]}  Nf6 {[%clk 0:02:58]} 2. Nc3 {[%clk 0:02:59]}  g6 {[%clk 0:02:53]} 3. g3 {[%clk 0:02:57]}  Bg7 {[%clk 0:02:52]} 4. Bg2 {[%clk 0:02:57]}  O-O {[%clk 0:02:51]} 5. e4 {[%clk 0:02:57]}  c5 {[%clk 0:02:49]} 6. Nge2 {[%clk 0:02:56]}  Nc6 {[%clk 0:02:48]} 7. O-O {[%clk 0:02:56]}  d6 {[%clk 0:02:46]} 8. h3 {[%clk 0:02:55]}  Rb8 {[%clk 0:02:44]} 9. d3 {[%clk 0:02:54]}  a6 {[%clk 0:02:43]} 10. f4 {[%clk 0:02:54]}  Ne8 {[%clk 0:02:34]} 11. a4 {[%clk 0:02:39]}  Nd4 {[%clk 0:02:28]} 12. Be3 {[%clk 0:02:34]}  Nc7 {[%clk 0:02:18]} 13. a5 {[%clk 0:02:20]}  b5 {[%clk 0:02:15]} 14. axb6 {[%clk 0:02:20]}  Rxb6 {[%clk 0:02:15]} 15. Ra2 {[%clk 0:02:11]}  Bd7 {[%clk 0:02:05]} 16. Bf2 {[%clk 0:01:49]}  Nce6 {[%clk 0:02:02]} 17. f5 {[%clk 0:01:41]}  Nxe2+ {[%clk 0:01:48]} 18. Nxe2 {[%clk 0:01:38]}  gxf5 {[%clk 0:01:29]} 19. exf5 {[%clk 0:01:36]}  Nc7 {[%clk 0:01:28]} 20. d4 {[%clk 0:01:31]}  Bxf5 {[%clk 0:01:14]} 21. dxc5 {[%clk 0:01:03]}  dxc5 {[%clk 0:00:58]} 22. Bxc5 {[%clk 0:00:54]}  Qxd1 {[%clk 0:00:54]} 23. Rxd1 {[%clk 0:00:53]}  Rxb2 {[%clk 0:00:52]} 24. Rxb2 {[%clk 0:00:47]}  Bxb2 {[%clk 0:00:51]} 25. Bxe7 {[%clk 0:00:34]}  Re8 {[%clk 0:00:50]} 26. Rd8 {[%clk 0:00:34]}  Kg7 {[%clk 0:00:38]} 27. Rxe8 {[%clk 0:00:33]}  Nxe8 {[%clk 0:00:38]} 28. c5 {[%clk 0:00:21]}  a5 {[%clk 0:00:29]} 29. c6 {[%clk 0:00:20]}  Be5 {[%clk 0:00:24]} 30. Nf4 {[%clk 0:00:16]}  a4 {[%clk 0:00:20]} 31. c7 {[%clk 0:00:08]}  Bxc7 {[%clk 0:00:19]} 32. Bc6 {[%clk 0:00:08]}  Bd6 {[%clk 0:00:18]} 33. Bxd6 {[%clk 0:00:07]}  Nxd6 {[%clk 0:00:18]} 34. Bxa4 {[%clk 0:00:08]}  Ne4 {[%clk 0:00:18]} 35. Kh2 {[%clk 0:00:06]}  Ng5 {[%clk 0:00:18]} 36. Bd1 {[%clk 0:00:05]}  Ne6 {[%clk 0:00:17]} 37. Nxe6+ {[%clk 0:00:04]}  fxe6 {[%clk 0:00:16]} 38. h4 {[%clk 0:00:04]}  e5 {[%clk 0:00:16]} 39. Kg1 {[%clk 0:00:05]}  Kg6 {[%clk 0:00:15]} 40. Kf2 {[%clk 0:00:05]}  h5 {[%clk 0:00:15]} 41. Ke3 {[%clk 0:00:05]}  Bb1 {[%clk 0:00:10]} 42. Be2 {[%clk 0:00:05]}  Bf5 {[%clk 0:00:10]} 43. Bb5 {[%clk 0:00:04]}  Bb1 {[%clk 0:00:09]} 44. Be8+ {[%clk 0:00:04]}  Kh6 {[%clk 0:00:08]} 45. Kf2 {[%clk 0:00:04]}  Bc2 {[%clk 0:00:07]} 46. Ke3 {[%clk 0:00:04]}  Bb1 {[%clk 0:00:07]} 47. Kd2 {[%clk 0:00:04]}  Bf5 {[%clk 0:00:07]} 48. Kc3 {[%clk 0:00:03]}  Bg4 {[%clk 0:00:05]} 49. Kd2 {[%clk 0:00:03]}  Kg7 {[%clk 0:00:05]} 50. Ke3 {[%clk 0:00:02]}  Kf6 {[%clk 0:00:05]} 51. Bc6 {[%clk 0:00:03]}  Kf5 {[%clk 0:00:03]} 52. Bd7+ {[%clk 0:00:01]}  Kf6 {[%clk 0:00:02]} 53. Bc6 {[%clk 0:00:02]} 1-0


[Site "https://www.chess.com"]

[Event "Titled Tuesday Blitz April 4 Late 2023"]
[White "Svicevic, Rastko"]
[Black "tandercat"]
[WhiteFideId "916315"]
[WhiteElo "2071"]
[BlackElo "1944"]
[Result "1-0"]
[Round "09"]
[TimeControl "180+2"]
[Date "2023.04.04"]
[WhiteClock "0:00:57"]
[BlackClock "0:00:01"]

1. d4 {[%clk 0:03:00]}  d5 {[%clk 0:02:59]} 2. Bg5 {[%clk 0:03:01]}  h6 {[%clk 0:02:58]} 3. Bh4 {[%clk 0:03:01]}  c6 {[%clk 0:02:58]} 4. e3 {[%clk 0:03:01]}  Qb6 {[%clk 0:02:57]} 5. b3 {[%clk 0:03:00]}  e5 {[%clk 0:02:57]} 6. c3 {[%clk 0:02:59]}  Be7 {[%clk 0:02:53]} 7. Bxe7 {[%clk 0:02:57]}  Nxe7 {[%clk 0:02:51]} 8. dxe5 {[%clk 0:02:57]}  Ng6 {[%clk 0:02:46]} 9. Nf3 {[%clk 0:02:49]}  O-O {[%clk 0:02:40]} 10. Bd3 {[%clk 0:02:46]}  Bg4 {[%clk 0:02:18]} 11. Bxg6 {[%clk 0:02:43]}  fxg6 {[%clk 0:02:18]} 12. Nbd2 {[%clk 0:02:44]}  Nd7 {[%clk 0:02:16]} 13. h3 {[%clk 0:02:44]}  Bxf3 {[%clk 0:02:05]} 14. Nxf3 {[%clk 0:02:45]}  Rae8 {[%clk 0:02:05]} 15. Qd3 {[%clk 0:02:37]}  Nxe5 {[%clk 0:01:58]} 16. Nxe5 {[%clk 0:02:36]}  Rxe5 {[%clk 0:01:58]} 17. O-O {[%clk 0:02:17]}  Re4 {[%clk 0:01:54]} 18. c4 {[%clk 0:02:15]}  Re5 {[%clk 0:01:26]} 19. cxd5 {[%clk 0:02:09]}  cxd5 {[%clk 0:01:23]} 20. Rac1 {[%clk 0:02:04]}  Qd6 {[%clk 0:01:16]} 21. Rfd1 {[%clk 0:02:02]}  Qf6 {[%clk 0:01:11]} 22. Rc2 {[%clk 0:02:01]}  g5 {[%clk 0:01:07]} 23. Rdd2 {[%clk 0:01:50]}  h5 {[%clk 0:01:06]} 24. Rc5 {[%clk 0:01:49]}  Rd8 {[%clk 0:00:49]} 25. Qd4 {[%clk 0:01:49]}  b6 {[%clk 0:00:40]} 26. Rc7 {[%clk 0:01:18]}  g4 {[%clk 0:00:18]} 27. hxg4 {[%clk 0:01:16]}  hxg4 {[%clk 0:00:16]} 28. Qxg4 {[%clk 0:01:16]}  Rg5 {[%clk 0:00:09]} 29. Qh3 {[%clk 0:01:16]}  Rf8 {[%clk 0:00:07]} 30. Rcc2 {[%clk 0:01:08]}  Rg6 {[%clk 0:00:05]} 31. Rd4 {[%clk 0:01:05]}  Rh6 {[%clk 0:00:01]} 32. Qg3 {[%clk 0:01:06]}  Rg6 {[%clk 0:00:01]} 33. Rg4 {[%clk 0:01:06]}  Rxg4 {[%clk 0:00:01]} 34. Qxg4 {[%clk 0:01:07]}  Qa1+ {[%clk 0:00:01]} 35. Kh2 {[%clk 0:01:06]}  Qe5+ {[%clk 0:00:01]} 36. Qg3 {[%clk 0:01:02]}  Qh5+ {[%clk 0:00:01]} 37. Qh3 {[%clk 0:01:00]}  Qe5+ {[%clk 0:00:01]} 38. g3 {[%clk 0:01:00]}  Qe4 {[%clk 0:00:01]} 39. Rd2 {[%clk 0:00:57]} 1-0


[Site "https://www.chess.com"]

[Event "Titled Tuesday Blitz April 4 Late 2023"]
[White "Kornyukov, Alexey"]
[Black "Burke, Paul"]
[WhiteFideId "4150457"]
[BlackFideId "2605767"]
[WhiteElo "2352"]
[BlackElo "1865"]
[Result "1-0"]
[Round "09"]
[TimeControl "180+2"]
[Date "2023.04.04"]
[WhiteClock "0:00:11"]
[BlackClock "0:00:08"]

1. d4 {[%clk 0:03:00]}  a6 {[%clk 0:02:58]} 2. e4 {[%clk 0:02:59]}  d6 {[%clk 0:02:58]} 3. Bd3 {[%clk 0:02:57]}  g6 {[%clk 0:02:58]} 4. h4 {[%clk 0:02:56]}  h6 {[%clk 0:02:58]} 5. Ne2 {[%clk 0:02:50]}  Bg7 {[%clk 0:02:56]} 6. Be3 {[%clk 0:02:49]}  Nd7 {[%clk 0:02:54]} 7. Qd2 {[%clk 0:02:49]}  e5 {[%clk 0:02:54]} 8. Nbc3 {[%clk 0:02:36]}  Ne7 {[%clk 0:02:53]} 9. f4 {[%clk 0:02:33]}  f5 {[%clk 0:02:36]} 10. fxe5 {[%clk 0:02:24]}  dxe5 {[%clk 0:02:35]} 11. O-O-O {[%clk 0:02:08]}  f4 {[%clk 0:02:28]} 12. Bf2 {[%clk 0:02:06]}  g5 {[%clk 0:02:11]} 13. hxg5 {[%clk 0:02:00]}  hxg5 {[%clk 0:02:10]} 14. Rxh8+ {[%clk 0:02:00]}  Bxh8 {[%clk 0:02:10]} 15. Rh1 {[%clk 0:01:59]}  Bg7 {[%clk 0:01:43]} 16. g3 {[%clk 0:01:44]}  Nf6 {[%clk 0:01:36]} 17. dxe5 {[%clk 0:01:42]}  Ng4 {[%clk 0:01:32]} 18. Bc5 {[%clk 0:01:19]}  Bxe5 {[%clk 0:01:15]} 19. gxf4 {[%clk 0:01:18]}  gxf4 {[%clk 0:01:06]} 20. Nxf4 {[%clk 0:01:14]}  b6 {[%clk 0:00:50]} 21. Bxe7 {[%clk 0:01:09]}  Qxe7 {[%clk 0:00:49]} 22. Ng6 {[%clk 0:01:08]}  Qd6 {[%clk 0:00:27]} 23. Nxe5 {[%clk 0:01:01]}  Qxe5 {[%clk 0:00:22]} 24. Bc4 {[%clk 0:00:22]}  Bd7 {[%clk 0:00:20]} 25. Bd5 {[%clk 0:00:18]}  c6 {[%clk 0:00:19]} 26. Bc4 {[%clk 0:00:18]}  O-O-O {[%clk 0:00:18]} 27. Bxa6+ {[%clk 0:00:18]}  Kb8 {[%clk 0:00:17]} 28. Qe2 {[%clk 0:00:17]}  Be6 {[%clk 0:00:12]} 29. a3 {[%clk 0:00:15]}  Nf6 {[%clk 0:00:11]} 30. Bc4 {[%clk 0:00:14]}  Nd7 {[%clk 0:00:10]} 31. Bxe6 {[%clk 0:00:13]}  Qxe6 {[%clk 0:00:10]} 32. Qe3 {[%clk 0:00:14]}  Nc5 {[%clk 0:00:10]} 33. Kb1 {[%clk 0:00:13]}  Qe5 {[%clk 0:00:09]} 34. Rh7 {[%clk 0:00:11]}  Re8 {[%clk 0:00:08]} 35. b4 {[%clk 0:00:11]} 1-0


[Site "https://www.chess.com"]

[Event "Titled Tuesday Blitz April 4 Late 2023"]
[White "Matute Escobar, Roxanny"]
[Black "ritanovikova"]
[WhiteFideId "3926028"]
[WhiteElo "1844"]
[BlackElo "2202"]
[Result "0-1"]
[Round "09"]
[TimeControl "180+2"]
[Date "2023.04.04"]
[WhiteClock "0:00:08"]
[BlackClock "0:00:22"]

1. e4 {[%clk 0:03:00]}  d5 {[%clk 0:02:58]} 2. exd5 {[%clk 0:02:59]}  Qxd5 {[%clk 0:02:57]} 3. Nc3 {[%clk 0:03:00]}  Qd6 {[%clk 0:02:57]} 4. Bc4 {[%clk 0:02:59]}  Nf6 {[%clk 0:02:57]} 5. d3 {[%clk 0:02:59]}  a6 {[%clk 0:02:57]} 6. Nge2 {[%clk 0:02:53]}  Nc6 {[%clk 0:02:56]} 7. Bf4 {[%clk 0:02:51]}  Qd8 {[%clk 0:02:56]} 8. Qd2 {[%clk 0:02:40]}  e5 {[%clk 0:02:56]} 9. Bg3 {[%clk 0:02:40]}  Bd6 {[%clk 0:02:45]} 10. Qg5 {[%clk 0:02:30]}  O-O {[%clk 0:02:31]} 11. O-O {[%clk 0:02:28]}  h6 {[%clk 0:02:30]} 12. Qd2 {[%clk 0:02:24]}  b5 {[%clk 0:02:30]} 13. Bb3 {[%clk 0:02:24]}  Na5 {[%clk 0:02:28]} 14. Bd5 {[%clk 0:02:02]}  Nxd5 {[%clk 0:02:19]} 15. Nxd5 {[%clk 0:02:03]}  c6 {[%clk 0:02:16]} 16. Ne3 {[%clk 0:01:56]}  f5 {[%clk 0:02:12]} 17. f4 {[%clk 0:01:53]}  Bc5 {[%clk 0:02:08]} 18. Kh1 {[%clk 0:01:51]}  e4 {[%clk 0:02:04]} 19. b4 {[%clk 0:01:40]}  Bxe3 {[%clk 0:01:55]} 20. Qxe3 {[%clk 0:01:40]}  exd3 {[%clk 0:01:52]} 21. cxd3 {[%clk 0:01:26]}  Nb7 {[%clk 0:01:50]} 22. Nd4 {[%clk 0:01:21]}  c5 {[%clk 0:01:45]} 23. bxc5 {[%clk 0:01:10]}  Nxc5 {[%clk 0:01:44]} 24. Rac1 {[%clk 0:00:58]}  Qd6 {[%clk 0:01:39]} 25. Bh4 {[%clk 0:00:33]}  Bb7 {[%clk 0:01:21]} 26. Be7 {[%clk 0:00:32]}  Qd5 {[%clk 0:01:21]} 27. Nf3 {[%clk 0:00:30]}  Rfe8 {[%clk 0:01:19]} 28. Qxc5 {[%clk 0:00:29]}  Qxd3 {[%clk 0:01:13]} 29. Rfd1 {[%clk 0:00:20]}  Qe2 {[%clk 0:01:12]} 30. Rf1 {[%clk 0:00:12]}  Qxe7 {[%clk 0:01:11]} 31. Qxe7 {[%clk 0:00:12]}  Rxe7 {[%clk 0:01:12]} 32. Ne5 {[%clk 0:00:12]}  g5 {[%clk 0:01:09]} 33. Ng6 {[%clk 0:00:11]}  Rg7 {[%clk 0:01:07]} 34. Ne5 {[%clk 0:00:11]}  gxf4 {[%clk 0:01:06]} 35. Rf2 {[%clk 0:00:11]}  Re8 {[%clk 0:01:02]} 36. Nd3 {[%clk 0:00:10]}  f3 {[%clk 0:01:01]} 37. gxf3 {[%clk 0:00:10]}  Re3 {[%clk 0:01:01]} 38. Ne1 {[%clk 0:00:10]}  Rge7 {[%clk 0:01:00]} 39. Rf1 {[%clk 0:00:07]}  f4 {[%clk 0:00:55]} 40. Rc5 {[%clk 0:00:06]}  Kh7 {[%clk 0:00:53]} 41. Nc2 {[%clk 0:00:05]}  Rxf3 {[%clk 0:00:52]} 42. Rxf3 {[%clk 0:00:06]}  Bxf3+ {[%clk 0:00:53]} 43. Kg1 {[%clk 0:00:07]}  Be4 {[%clk 0:00:48]} 44. Nd4 {[%clk 0:00:07]}  Bg6 {[%clk 0:00:46]} 45. Kf2 {[%clk 0:00:07]}  Rd7 {[%clk 0:00:45]} 46. Nb3 {[%clk 0:00:07]}  Rd2+ {[%clk 0:00:42]} 47. Kf3 {[%clk 0:00:07]}  Rxh2 {[%clk 0:00:41]} 48. Kxf4 {[%clk 0:00:07]}  Rxa2 {[%clk 0:00:39]} 49. Rc7+ {[%clk 0:00:07]}  Kg8 {[%clk 0:00:38]} 50. Nc5 {[%clk 0:00:08]}  Bf7 {[%clk 0:00:36]} 51. Ke5 {[%clk 0:00:08]}  Re2+ {[%clk 0:00:35]} 52. Kf6 {[%clk 0:00:08]}  Rf2+ {[%clk 0:00:35]} 53. Ke7 {[%clk 0:00:08]}  Re2+ {[%clk 0:00:35]} 54. Kf6 {[%clk 0:00:08]}  Re8 {[%clk 0:00:35]} 55. Nxa6 {[%clk 0:00:08]}  h5 {[%clk 0:00:33]} 56. Rb7 {[%clk 0:00:08]}  Bc4 {[%clk 0:00:32]} 57. Nb4 {[%clk 0:00:07]}  Rf8+ {[%clk 0:00:32]} 58. Kg6 {[%clk 0:00:07]}  h4 {[%clk 0:00:31]} 59. Rg7+ {[%clk 0:00:07]}  Kh8 {[%clk 0:00:30]} 60. Rh7+ {[%clk 0:00:08]}  Kg8 {[%clk 0:00:31]} 61. Rxh4 {[%clk 0:00:09]}  Bf7+ {[%clk 0:00:28]} 62. Kg5 {[%clk 0:00:08]}  Rd8 {[%clk 0:00:27]} 63. Re4 {[%clk 0:00:08]}  Bc4 {[%clk 0:00:25]} 64. Kf6 {[%clk 0:00:08]}  Rf8+ {[%clk 0:00:24]} 65. Kg6 {[%clk 0:00:09]}  Bb3 {[%clk 0:00:23]} 66. Nc6 {[%clk 0:00:09]}  Bc2 {[%clk 0:00:22]} 67. Ne7+ {[%clk 0:00:09]}  Kh8 {[%clk 0:00:22]} 68. Kg5 {[%clk 0:00:08]}  Bxe4 {[%clk 0:00:22]} 0-1


[Site "https://www.chess.com"]

[Event "Titled Tuesday Blitz April 4 Late 2023"]
[White "Barria Santos, Jose Guilherme"]
[Black "Vargas, Mauricio"]
[WhiteFideId "1939300"]
[BlackFideId "4404572"]
[WhiteElo "2266"]
[BlackElo "1998"]
[Result "0-1"]
[Round "09"]
[TimeControl "180+2"]
[Date "2023.04.04"]
[WhiteClock "0:00:08"]
[BlackClock "0:00:12"]

1. e4 {[%clk 0:02:46]}  c5 {[%clk 0:03:00]} 2. Nf3 {[%clk 0:02:46]}  d6 {[%clk 0:02:21]} 3. d4 {[%clk 0:02:46]}  cxd4 {[%clk 0:02:18]} 4. Nxd4 {[%clk 0:02:46]}  Nf6 {[%clk 0:02:17]} 5. Nc3 {[%clk 0:02:46]}  g6 {[%clk 0:02:17]} 6. Be3 {[%clk 0:02:46]}  Bg7 {[%clk 0:02:17]} 7. f3 {[%clk 0:02:46]}  O-O {[%clk 0:02:17]} 8. Qd2 {[%clk 0:02:46]}  Nc6 {[%clk 0:02:17]} 9. Bc4 {[%clk 0:02:46]}  a6 {[%clk 0:02:13]} 10. O-O-O {[%clk 0:02:46]}  b5 {[%clk 0:02:13]} 11. Nxc6 {[%clk 0:02:46]}  Qc7 {[%clk 0:02:07]} 12. Nd5 {[%clk 0:02:40]}  Qb7 {[%clk 0:01:56]} 13. Nxf6+ {[%clk 0:02:27]}  Bxf6 {[%clk 0:01:53]} 14. Bd5 {[%clk 0:02:23]}  e6 {[%clk 0:01:51]} 15. Ne7+ {[%clk 0:02:22]}  Qxe7 {[%clk 0:01:47]} 16. Bxa8 {[%clk 0:02:22]}  Rd8 {[%clk 0:01:33]} 17. Bd4 {[%clk 0:02:16]}  Bg5 {[%clk 0:01:30]} 18. f4 {[%clk 0:02:12]}  Bh6 {[%clk 0:01:30]} 19. g4 {[%clk 0:02:10]}  e5 {[%clk 0:01:21]} 20. Bxe5 {[%clk 0:01:58]}  Bxg4 {[%clk 0:01:14]} 21. Rdf1 {[%clk 0:01:09]}  dxe5 {[%clk 0:01:11]} 22. Bd5 {[%clk 0:01:09]}  Bxf4 {[%clk 0:01:07]} 23. Rxf4 {[%clk 0:01:07]}  exf4 {[%clk 0:01:08]} 24. h4 {[%clk 0:01:02]}  Bh5 {[%clk 0:01:07]} 25. Rf1 {[%clk 0:01:00]}  f3 {[%clk 0:01:05]} 26. Qf4 {[%clk 0:00:53]}  Kg7 {[%clk 0:00:56]} 27. Bb3 {[%clk 0:00:53]}  a5 {[%clk 0:00:54]} 28. Rg1 {[%clk 0:00:33]}  a4 {[%clk 0:00:53]} 29. Bd5 {[%clk 0:00:33]}  b4 {[%clk 0:00:43]} 30. Rg5 {[%clk 0:00:33]}  f6 {[%clk 0:00:36]} 31. Rg1 {[%clk 0:00:17]}  Qa7 {[%clk 0:00:32]} 32. Rf1 {[%clk 0:00:17]}  Qe7 {[%clk 0:00:21]} 33. Bc4 {[%clk 0:00:15]}  a3 {[%clk 0:00:20]} 34. Bd3 {[%clk 0:00:13]}  axb2+ {[%clk 0:00:19]} 35. Kb1 {[%clk 0:00:13]}  Ra8 {[%clk 0:00:17]} 36. Bc4 {[%clk 0:00:13]}  Qe5 {[%clk 0:00:14]} 37. Bb3 {[%clk 0:00:13]}  Qxf4 {[%clk 0:00:13]} 38. Rd1 {[%clk 0:00:08]}  Kh6 {[%clk 0:00:12]} 0-1


[Site "https://www.chess.com"]

[Event "Titled Tuesday Blitz April 4 Late 2023"]
[White "Brahami, Lamine"]
[Black "Srdanovic, Jovana"]
[WhiteFideId "7905637"]
[BlackFideId "954810"]
[WhiteElo "2088"]
[BlackElo "2145"]
[Result "1-0"]
[Round "09"]
[TimeControl "180+2"]
[Date "2023.04.04"]
[WhiteClock "0:00:49"]
[BlackClock "0:00:18"]

1. d4 {[%clk 0:02:58]}  d5 {[%clk 0:02:59]} 2. Nf3 {[%clk 0:02:58]}  Nf6 {[%clk 0:02:59]} 3. e3 {[%clk 0:02:59]}  c5 {[%clk 0:02:57]} 4. Bb5+ {[%clk 0:02:58]}  Bd7 {[%clk 0:02:48]} 5. Bxd7+ {[%clk 0:02:57]}  Nbxd7 {[%clk 0:02:49]} 6. dxc5 {[%clk 0:02:57]}  Nxc5 {[%clk 0:02:48]} 7. O-O {[%clk 0:02:57]}  e6 {[%clk 0:02:48]} 8. b3 {[%clk 0:02:57]}  Bd6 {[%clk 0:02:47]} 9. Bb2 {[%clk 0:02:58]}  O-O {[%clk 0:02:47]} 10. Nbd2 {[%clk 0:02:54]}  Rc8 {[%clk 0:02:35]} 11. c4 {[%clk 0:02:54]}  Nce4 {[%clk 0:02:20]} 12. cxd5 {[%clk 0:02:48]}  exd5 {[%clk 0:02:17]} 13. Rc1 {[%clk 0:02:42]}  Rxc1 {[%clk 0:02:06]} 14. Qxc1 {[%clk 0:02:41]}  Ng4 {[%clk 0:02:01]} 15. h3 {[%clk 0:02:19]}  Ngxf2 {[%clk 0:01:36]} 16. Rxf2 {[%clk 0:02:16]}  Nxf2 {[%clk 0:01:36]} 17. Kxf2 {[%clk 0:02:16]}  Re8 {[%clk 0:01:34]} 18. Qc3 {[%clk 0:02:15]}  f6 {[%clk 0:01:28]} 19. Qd3 {[%clk 0:02:04]}  Bc5 {[%clk 0:01:25]} 20. Nf1 {[%clk 0:02:04]}  Kh8 {[%clk 0:01:22]} 21. Bd4 {[%clk 0:01:54]}  Bxd4 {[%clk 0:01:11]} 22. Qxd4 {[%clk 0:01:53]}  Qa5 {[%clk 0:01:09]} 23. a4 {[%clk 0:01:46]}  b5 {[%clk 0:01:08]} 24. axb5 {[%clk 0:01:35]}  Qxb5 {[%clk 0:01:06]} 25. N1d2 {[%clk 0:01:31]}  a5 {[%clk 0:01:03]} 26. Nh4 {[%clk 0:01:19]}  Qc6 {[%clk 0:00:46]} 27. Nf5 {[%clk 0:01:17]}  Qe6 {[%clk 0:00:43]} 28. g4 {[%clk 0:01:15]}  h5 {[%clk 0:00:39]} 29. Nf3 {[%clk 0:00:59]}  hxg4 {[%clk 0:00:38]} 30. Qxg4 {[%clk 0:00:57]}  Qf7 {[%clk 0:00:21]} 31. Nd6 {[%clk 0:00:57]}  Qe7 {[%clk 0:00:20]} 32. Qh5+ {[%clk 0:00:54]}  Kg8 {[%clk 0:00:20]} 33. Qxe8+ {[%clk 0:00:55]}  Qxe8 {[%clk 0:00:20]} 34. Nxe8 {[%clk 0:00:56]}  Kf7 {[%clk 0:00:21]} 35. Nc7 {[%clk 0:00:56]}  Ke7 {[%clk 0:00:20]} 36. Nxd5+ {[%clk 0:00:56]}  Kd6 {[%clk 0:00:21]} 37. Nc3 {[%clk 0:00:57]}  Kc5 {[%clk 0:00:22]} 38. Nd4 {[%clk 0:00:55]}  Kb4 {[%clk 0:00:22]} 39. Nd5+ {[%clk 0:00:54]}  Kc5 {[%clk 0:00:20]} 40. Nf4 {[%clk 0:00:50]}  g5 {[%clk 0:00:19]} 41. Nd3+ {[%clk 0:00:49]}  Kd5 {[%clk 0:00:18]} 42. Kf3 {[%clk 0:00:49]} 1-0


[Site "https://www.chess.com"]